[Event "Titled Tuesday Blitz April 26 Late 2022"]
[White "Papp, Petra"]
[Black "Stanisz, Patryk"]
[WhiteFideId "739049"]
[BlackFideId "1123106"]
[WhiteElo "2259"]
[BlackElo "1833"]
[Result "1-0"]
[Round "07"]
[TimeControl "180+1"]
[Date "2022.04.26"]
[WhiteClock "0:00:26"]
[BlackClock "0:00:01"]

1. e4 {[%clk 0:02:55]}  c5 {[%clk 0:02:59]} 2. Nf3 {[%clk 0:02:52]}  Nc6 {[%clk 0:02:54]} 3. d4 {[%clk 0:02:51]}  cxd4 {[%clk 0:02:55]} 4. Nxd4 {[%clk 0:02:52]}  Nf6 {[%clk 0:02:56]} 5. Nc3 {[%clk 0:02:52]}  e5 {[%clk 0:02:56]} 6. Ndb5 {[%clk 0:02:52]}  d6 {[%clk 0:02:56]} 7. Nd5 {[%clk 0:02:52]}  Nxd5 {[%clk 0:02:56]} 8. exd5 {[%clk 0:02:52]}  Ne7 {[%clk 0:02:57]} 9. c3 {[%clk 0:02:52]}  Nf5 {[%clk 0:02:56]} 10. Bd3 {[%clk 0:02:42]}  Be7 {[%clk 0:02:56]} 11. O-O {[%clk 0:02:39]}  O-O {[%clk 0:02:54]} 12. a4 {[%clk 0:02:37]}  Nh4 {[%clk 0:02:53]} 13. a5 {[%clk 0:02:28]}  f5 {[%clk 0:02:45]} 14. f4 {[%clk 0:02:25]}  a6 {[%clk 0:02:29]} 15. Na3 {[%clk 0:02:20]}  exf4 {[%clk 0:01:51]} 16. Nc4 {[%clk 0:02:06]}  g5 {[%clk 0:01:31]} 17. Nb6 {[%clk 0:02:05]}  Rb8 {[%clk 0:01:30]} 18. Qh5 {[%clk 0:01:59]}  Bd7 {[%clk 0:01:25]} 19. Nxd7 {[%clk 0:01:53]}  Qxd7 {[%clk 0:01:26]} 20. Bd2 {[%clk 0:01:52]}  Qe8 {[%clk 0:01:22]} 21. Qe2 {[%clk 0:01:46]}  Bf6 {[%clk 0:01:16]} 22. Qf2 {[%clk 0:01:43]}  Be5 {[%clk 0:00:57]} 23. Rae1 {[%clk 0:01:38]}  Qf7 {[%clk 0:00:54]} 24. c4 {[%clk 0:01:35]}  Rbe8 {[%clk 0:00:50]} 25. b4 {[%clk 0:01:30]}  Qf6 {[%clk 0:00:50]} 26. Rxe5 {[%clk 0:01:20]}  dxe5 {[%clk 0:00:38]} 27. c5 {[%clk 0:01:19]}  e4 {[%clk 0:00:38]} 28. Bc4 {[%clk 0:01:19]}  e3 {[%clk 0:00:39]} 29. d6+ {[%clk 0:01:19]}  Kh8 {[%clk 0:00:38]} 30. Qe1 {[%clk 0:01:15]}  exd2 {[%clk 0:00:23]} 31. Qxd2 {[%clk 0:01:16]}  Re4 {[%clk 0:00:20]} 32. Bd3 {[%clk 0:01:11]}  Qd4+ {[%clk 0:00:20]} 33. Kh1 {[%clk 0:01:10]}  Re3 {[%clk 0:00:20]} 34. Rd1 {[%clk 0:01:07]}  f3 {[%clk 0:00:17]} 35. gxf3 {[%clk 0:01:02]}  Nxf3 {[%clk 0:00:15]} 36. Qc2 {[%clk 0:01:01]}  Rfe8 {[%clk 0:00:06]} 37. Bf1 {[%clk 0:00:38]}  Qf4 {[%clk 0:00:02]} 38. d7 {[%clk 0:00:37]}  Rd8 {[%clk 0:00:01]} 39. b5 {[%clk 0:00:32]}  Qg4 {[%clk 0:00:01]} 40. Qb2+ {[%clk 0:00:28]}  Kg8 {[%clk 0:00:01]} 41. Bc4+ {[%clk 0:00:26]} 1-0


[Site "https://www.chess.com"]

[Event "Titled Tuesday Blitz April 26 Late 2022"]
[White "Petrova, Irina"]
[Black "Eswaran, Ashritha"]
[WhiteFideId "14124122"]
[BlackFideId "2080788"]
[WhiteElo "1993"]
[BlackElo "2419"]
[Result "0-1"]
[Round "07"]
[TimeControl "180+1"]
[Date "2022.04.26"]
[WhiteClock "0:00:46"]
[BlackClock "0:01:20"]

1. e4 {[%clk 0:03:00]}  c6 {[%clk 0:02:59]} 2. d4 {[%clk 0:02:58]}  d5 {[%clk 0:03:00]} 3. e5 {[%clk 0:02:58]}  Bf5 {[%clk 0:02:59]} 4. h4 {[%clk 0:02:58]}  h5 {[%clk 0:02:59]} 5. c4 {[%clk 0:02:58]}  e6 {[%clk 0:02:59]} 6. Nc3 {[%clk 0:02:58]}  Ne7 {[%clk 0:02:58]} 7. Bg5 {[%clk 0:02:57]}  Nd7 {[%clk 0:02:58]} 8. cxd5 {[%clk 0:02:57]}  exd5 {[%clk 0:02:56]} 9. Bd3 {[%clk 0:02:54]}  Be6 {[%clk 0:02:55]} 10. Nge2 {[%clk 0:02:52]}  Qb6 {[%clk 0:02:55]} 11. Qd2 {[%clk 0:02:51]}  Nc8 {[%clk 0:02:53]} 12. Nf4 {[%clk 0:02:48]}  Qxd4 {[%clk 0:02:15]} 13. Nxe6 {[%clk 0:02:47]}  Qxe5+ {[%clk 0:02:13]} 14. Kf1 {[%clk 0:02:45]}  Qxe6 {[%clk 0:02:13]} 15. Re1 {[%clk 0:02:44]}  Ne5 {[%clk 0:02:13]} 16. f4 {[%clk 0:02:42]}  f6 {[%clk 0:02:08]} 17. Bg6+ {[%clk 0:02:21]}  Kd8 {[%clk 0:02:07]} 18. fxe5 {[%clk 0:02:20]}  fxg5 {[%clk 0:02:07]} 19. Qxg5+ {[%clk 0:02:16]}  Be7 {[%clk 0:02:06]} 20. Qg3 {[%clk 0:02:16]}  Rf8+ {[%clk 0:02:05]} 21. Kg1 {[%clk 0:02:16]}  Bc5+ {[%clk 0:02:03]} 22. Kh2 {[%clk 0:02:16]}  Bf2 {[%clk 0:02:03]} 23. Qg5+ {[%clk 0:02:14]}  Ne7 {[%clk 0:02:03]} 24. Bxh5 {[%clk 0:01:34]}  Rf5 {[%clk 0:01:43]} 25. Qg4 {[%clk 0:01:29]}  g6 {[%clk 0:01:38]} 26. Ref1 {[%clk 0:01:10]}  gxh5 {[%clk 0:01:33]} 27. Qg7 {[%clk 0:01:01]}  Kc7 {[%clk 0:01:27]} 28. Nd1 {[%clk 0:00:47]}  Rg8 {[%clk 0:01:22]} 29. Qh7 {[%clk 0:00:46]}  Qxe5+ {[%clk 0:01:20]} 0-1


[Site "https://www.chess.com"]

[Event "Titled Tuesday Blitz April 26 Late 2022"]
[White "Potapova, Margarita"]
[Black "Maksimovic, Bojan"]
[WhiteFideId "14126869"]
[BlackFideId "14408120"]
[WhiteElo "2576"]
[BlackElo "2749"]
[Result "0-1"]
[Round "07"]
[TimeControl "180+1"]
[Date "2022.04.26"]
[WhiteClock "0:01:16"]
[BlackClock "0:01:02"]

1. e4 {[%clk 0:03:00]}  c5 {[%clk 0:03:00]} 2. Nf3 {[%clk 0:03:00]}  Nc6 {[%clk 0:03:00]} 3. Bb5 {[%clk 0:03:00]}  g6 {[%clk 0:03:00]} 4. Bxc6 {[%clk 0:02:59]}  dxc6 {[%clk 0:03:00]} 5. d3 {[%clk 0:02:59]}  Bg7 {[%clk 0:03:01]} 6. h3 {[%clk 0:02:59]}  Nf6 {[%clk 0:03:01]} 7. Nc3 {[%clk 0:02:58]}  Nd7 {[%clk 0:03:02]} 8. Be3 {[%clk 0:02:58]}  e5 {[%clk 0:03:02]} 9. Qd2 {[%clk 0:02:58]}  h6 {[%clk 0:03:02]} 10. O-O {[%clk 0:02:58]}  Qe7 {[%clk 0:03:03]} 11. Nh2 {[%clk 0:02:57]}  Nf8 {[%clk 0:03:03]} 12. f4 {[%clk 0:02:57]}  exf4 {[%clk 0:03:03]} 13. Bxf4 {[%clk 0:02:57]}  Be6 {[%clk 0:03:04]} 14. Kh1 {[%clk 0:02:56]}  g5 {[%clk 0:03:04]} 15. Be3 {[%clk 0:02:55]}  Ng6 {[%clk 0:03:05]} 16. Qf2 {[%clk 0:02:51]}  b6 {[%clk 0:03:01]} 17. a4 {[%clk 0:02:38]}  a5 {[%clk 0:03:01]} 18. Ng4 {[%clk 0:02:24]}  Bxg4 {[%clk 0:02:58]} 19. hxg4 {[%clk 0:02:25]}  Ne5 {[%clk 0:02:58]} 20. Qf5 {[%clk 0:02:23]}  Qe6 {[%clk 0:02:58]} 21. Bd2 {[%clk 0:01:49]}  Nxg4 {[%clk 0:02:55]} 22. Rf3 {[%clk 0:01:47]}  Ne5 {[%clk 0:02:47]} 23. Rff1 {[%clk 0:01:45]}  O-O-O {[%clk 0:02:44]} 24. Be3 {[%clk 0:01:41]}  Rd7 {[%clk 0:02:29]} 25. Qxe6 {[%clk 0:01:40]}  fxe6 {[%clk 0:02:28]} 26. Rae1 {[%clk 0:01:33]}  Rf8 {[%clk 0:02:23]} 27. Rxf8+ {[%clk 0:01:32]}  Bxf8 {[%clk 0:02:24]} 28. Rf1 {[%clk 0:01:33]}  Bg7 {[%clk 0:02:25]} 29. Ne2 {[%clk 0:01:33]}  Rf7 {[%clk 0:02:19]} 30. Rxf7 {[%clk 0:01:32]}  Nxf7 {[%clk 0:02:20]} 31. c3 {[%clk 0:01:33]}  Ne5 {[%clk 0:02:19]} 32. d4 {[%clk 0:01:33]}  Nc4 {[%clk 0:01:54]} 33. Bc1 {[%clk 0:01:32]}  cxd4 {[%clk 0:01:54]} 34. cxd4 {[%clk 0:01:33]}  e5 {[%clk 0:01:32]} 35. b3 {[%clk 0:01:33]}  Nd6 {[%clk 0:01:32]} 36. dxe5 {[%clk 0:01:27]}  Bxe5 {[%clk 0:01:33]} 37. Be3 {[%clk 0:01:26]}  c5 {[%clk 0:01:30]} 38. Nc1 {[%clk 0:01:20]}  Nxe4 {[%clk 0:01:28]} 39. Nd3 {[%clk 0:01:21]}  Bd6 {[%clk 0:01:29]} 40. Kg1 {[%clk 0:01:20]}  Kd7 {[%clk 0:01:29]} 41. Kf1 {[%clk 0:01:21]}  Ke6 {[%clk 0:01:30]} 42. Ke2 {[%clk 0:01:21]}  Kd5 {[%clk 0:01:30]} 43. Kf3 {[%clk 0:01:21]}  h5 {[%clk 0:01:28]} 44. Ne1 {[%clk 0:01:20]}  g4+ {[%clk 0:01:27]} 45. Ke2 {[%clk 0:01:20]}  Be5 {[%clk 0:01:22]} 46. Nc2 {[%clk 0:01:19]}  Bd4 {[%clk 0:01:20]} 47. Bf4 {[%clk 0:01:19]}  c4 {[%clk 0:01:14]} 48. b4 {[%clk 0:01:15]}  Nc3+ {[%clk 0:01:10]} 49. Kf1 {[%clk 0:01:14]}  Nxa4 {[%clk 0:01:11]} 50. bxa5 {[%clk 0:01:14]}  bxa5 {[%clk 0:01:11]} 51. Bc7 {[%clk 0:01:14]}  Bb6 {[%clk 0:01:10]} 52. Bf4 {[%clk 0:01:14]}  Nc3 {[%clk 0:01:09]} 53. Bd2 {[%clk 0:01:15]}  Ne4 {[%clk 0:01:09]} 54. Bc1 {[%clk 0:01:15]}  Bc5 {[%clk 0:01:09]} 55. Ke2 {[%clk 0:01:15]}  a4 {[%clk 0:01:09]} 56. Bb2 {[%clk 0:01:15]}  c3 {[%clk 0:01:09]} 57. Bc1 {[%clk 0:01:15]}  Kc4 {[%clk 0:01:09]} 58. Na1 {[%clk 0:01:15]}  a3 {[%clk 0:01:08]} 59. Bf4 {[%clk 0:01:15]}  a2 {[%clk 0:01:07]} 60. Bc1 {[%clk 0:01:16]}  Bd4 {[%clk 0:01:04]} 61. Nc2 {[%clk 0:01:16]}  Nc5 {[%clk 0:01:03]} 62. Na1 {[%clk 0:01:16]}  Nb3 {[%clk 0:01:02]} 0-1


[Site "https://www.chess.com"]

[Event "Titled Tuesday Blitz April 26 Late 2022"]
[White "Qiao, Cindy"]
[Black "Kukula, Pawel"]
[WhiteFideId "2620243"]
[BlackFideId "1115081"]
[WhiteElo "2239"]
[BlackElo "2152"]
[Result "0-1"]
[Round "07"]
[TimeControl "180+1"]
[Date "2022.04.26"]
[WhiteClock "0:00:04"]
[BlackClock "0:00:42"]

1. d4 {[%clk 0:02:22]}  d5 {[%clk 0:02:57]} 2. Bf4 {[%clk 0:02:22]}  c5 {[%clk 0:02:52]} 3. e3 {[%clk 0:02:22]}  Nf6 {[%clk 0:02:50]} 4. c3 {[%clk 0:02:22]}  Nc6 {[%clk 0:02:50]} 5. Nf3 {[%clk 0:02:22]}  Qb6 {[%clk 0:02:50]} 6. Qb3 {[%clk 0:02:21]}  c4 {[%clk 0:02:49]} 7. Qc2 {[%clk 0:02:22]}  Bf5 {[%clk 0:02:47]} 8. Qc1 {[%clk 0:02:22]}  e6 {[%clk 0:02:46]} 9. Be2 {[%clk 0:02:15]}  h6 {[%clk 0:02:45]} 10. h3 {[%clk 0:02:15]}  Be7 {[%clk 0:02:44]} 11. O-O {[%clk 0:02:15]}  O-O {[%clk 0:02:44]} 12. Nbd2 {[%clk 0:02:14]}  Rfc8 {[%clk 0:02:43]} 13. Ne5 {[%clk 0:02:00]}  Nxe5 {[%clk 0:02:38]} 14. Bxe5 {[%clk 0:02:01]}  Qd8 {[%clk 0:02:38]} 15. Bxf6 {[%clk 0:01:50]}  Bxf6 {[%clk 0:02:38]} 16. Bf3 {[%clk 0:01:47]}  Bd3 {[%clk 0:02:32]} 17. Re1 {[%clk 0:01:45]}  b5 {[%clk 0:02:32]} 18. e4 {[%clk 0:01:39]}  Rab8 {[%clk 0:02:31]} 19. e5 {[%clk 0:01:35]}  Bg5 {[%clk 0:02:30]} 20. Qd1 {[%clk 0:01:31]}  a5 {[%clk 0:02:28]} 21. a3 {[%clk 0:01:13]}  b4 {[%clk 0:02:28]} 22. axb4 {[%clk 0:01:10]}  axb4 {[%clk 0:02:29]} 23. Bh5 {[%clk 0:00:43]}  bxc3 {[%clk 0:02:20]} 24. bxc3 {[%clk 0:00:42]}  g6 {[%clk 0:02:19]} 25. Bg4 {[%clk 0:00:38]}  Rb2 {[%clk 0:01:58]} 26. Nf3 {[%clk 0:00:31]}  Be7 {[%clk 0:01:54]} 27. Nd2 {[%clk 0:00:16]}  Qb6 {[%clk 0:01:47]} 28. Re3 {[%clk 0:00:13]}  Bg5 {[%clk 0:01:42]} 29. Nf3 {[%clk 0:00:12]}  Bxe3 {[%clk 0:01:41]} 30. fxe3 {[%clk 0:00:13]}  Be4 {[%clk 0:01:38]} 31. Nd2 {[%clk 0:00:12]}  Bd3 {[%clk 0:01:37]} 32. Bf3 {[%clk 0:00:12]}  Rb8 {[%clk 0:01:35]} 33. Kh2 {[%clk 0:00:11]}  Kg7 {[%clk 0:01:32]} 34. e4 {[%clk 0:00:11]}  dxe4 {[%clk 0:01:31]} 35. Nxe4 {[%clk 0:00:12]}  Bxe4 {[%clk 0:01:29]} 36. Bxe4 {[%clk 0:00:13]}  Qd8 {[%clk 0:01:22]} 37. Qf3 {[%clk 0:00:13]}  Qg5 {[%clk 0:01:22]} 38. Ra7 {[%clk 0:00:13]}  Rf8 {[%clk 0:01:18]} 39. Rc7 {[%clk 0:00:11]}  h5 {[%clk 0:01:06]} 40. Rxc4 {[%clk 0:00:11]}  h4 {[%clk 0:01:05]} 41. Rc7 {[%clk 0:00:10]}  Ra2 {[%clk 0:00:55]} 42. Rb7 {[%clk 0:00:08]}  Ra1 {[%clk 0:00:54]} 43. c4 {[%clk 0:00:07]}  Qc1 {[%clk 0:00:51]} 44. Rb1 {[%clk 0:00:01]}  Rxb1 {[%clk 0:00:51]} 45. Bxb1 {[%clk 0:00:02]}  Qxb1 {[%clk 0:00:51]} 46. Qf6+ {[%clk 0:00:03]}  Kg8 {[%clk 0:00:50]} 47. Qxh4 {[%clk 0:00:04]}  Qf5 {[%clk 0:00:46]} 48. Qh6 {[%clk 0:00:04]}  Rd8 {[%clk 0:00:43]} 49. h4 {[%clk 0:00:04]}  Rxd4 {[%clk 0:00:42]} 0-1


[Site "https://www.chess.com"]

[Event "Titled Tuesday Blitz April 26 Late 2022"]
[White "Ricaurte Lopez, Juan Carlos"]
[Black "Harish, Neeraj"]
[WhiteFideId "3600327"]
[BlackFideId "30958130"]
[WhiteElo "2209"]
[BlackElo "1574"]
[Result "0-1"]
[Round "07"]
[TimeControl "180+1"]
[Date "2022.04.26"]
[WhiteClock "0:00:01"]
[BlackClock "0:00:17"]

1. e4 {[%clk 0:03:00]}  c5 {[%clk 0:02:58]} 2. d4 {[%clk 0:03:01]}  cxd4 {[%clk 0:02:58]} 3. c3 {[%clk 0:03:01]}  Nf6 {[%clk 0:02:57]} 4. e5 {[%clk 0:02:59]}  Nd5 {[%clk 0:02:53]} 5. Nf3 {[%clk 0:02:58]}  Nc6 {[%clk 0:02:51]} 6. Bc4 {[%clk 0:02:56]}  Nb6 {[%clk 0:02:51]} 7. Bb3 {[%clk 0:02:55]}  d6 {[%clk 0:02:49]} 8. cxd4 {[%clk 0:02:53]}  dxe5 {[%clk 0:02:48]} 9. d5 {[%clk 0:02:52]}  Na5 {[%clk 0:02:45]} 10. Nc3 {[%clk 0:02:47]}  f6 {[%clk 0:02:21]} 11. O-O {[%clk 0:02:34]}  Nxb3 {[%clk 0:02:04]} 12. axb3 {[%clk 0:02:30]}  Kf7 {[%clk 0:01:57]} 13. Be3 {[%clk 0:02:20]}  g6 {[%clk 0:01:28]} 14. Qd3 {[%clk 0:01:54]}  Bf5 {[%clk 0:01:23]} 15. Qb5 {[%clk 0:01:52]}  Bg7 {[%clk 0:00:50]} 16. Rfd1 {[%clk 0:01:17]}  Qd7 {[%clk 0:00:36]} 17. Qa5 {[%clk 0:00:37]}  Nc8 {[%clk 0:00:20]} 18. Nb5 {[%clk 0:00:30]}  a6 {[%clk 0:00:19]} 19. Nc7 {[%clk 0:00:24]}  Rb8 {[%clk 0:00:17]} 20. Qc3 {[%clk 0:00:15]}  Nd6 {[%clk 0:00:17]} 21. Bb6 {[%clk 0:00:13]}  Rhc8 {[%clk 0:00:17]} 22. Rac1 {[%clk 0:00:11]}  Nb5 {[%clk 0:00:16]} 23. Qb4 {[%clk 0:00:10]}  Nxc7 {[%clk 0:00:16]} 24. Bxc7 {[%clk 0:00:08]}  Rxc7 {[%clk 0:00:17]} 25. d6 {[%clk 0:00:08]}  Rxc1 {[%clk 0:00:16]} 26. Rxc1 {[%clk 0:00:08]}  Qxd6 {[%clk 0:00:17]} 27. Qxd6 {[%clk 0:00:07]}  exd6 {[%clk 0:00:18]} 28. Rc7+ {[%clk 0:00:07]}  Kg8 {[%clk 0:00:19]} 29. h3 {[%clk 0:00:06]}  d5 {[%clk 0:00:19]} 30. g4 {[%clk 0:00:05]}  Be6 {[%clk 0:00:18]} 31. Ne1 {[%clk 0:00:04]}  d4 {[%clk 0:00:19]} 32. Nd3 {[%clk 0:00:04]}  e4 {[%clk 0:00:19]} 33. Nc5 {[%clk 0:00:03]}  Bf7 {[%clk 0:00:19]} 34. Nxe4 {[%clk 0:00:02]}  Re8 {[%clk 0:00:18]} 35. Nd6 {[%clk 0:00:01]}  Re1+ {[%clk 0:00:17]} 36. Kg2 {[%clk 0:00:01]}  Bxb3 {[%clk 0:00:17]} 0-1


[Site "https://www.chess.com"]

[Event "Titled Tuesday Blitz April 26 Late 2022"]
[White "Richter, Nils"]
[Black "Sarkar, Justin"]
[WhiteFideId "12990809"]
[BlackFideId "2010011"]
[WhiteElo "2243"]
[BlackElo "2038"]
[Result "1-0"]
[Round "07"]
[TimeControl "180+1"]
[Date "2022.04.26"]
[WhiteClock "0:00:39"]
[BlackClock "0:00:01"]

1. d4 {[%clk 0:02:57]}  Nf6 {[%clk 0:02:51]} 2. c4 {[%clk 0:02:57]}  e6 {[%clk 0:02:50]} 3. Nf3 {[%clk 0:02:56]}  d5 {[%clk 0:02:45]} 4. e3 {[%clk 0:02:56]}  Nbd7 {[%clk 0:02:26]} 5. b3 {[%clk 0:02:55]}  b6 {[%clk 0:02:19]} 6. Bd3 {[%clk 0:02:54]}  Bb7 {[%clk 0:02:18]} 7. O-O {[%clk 0:02:53]}  c5 {[%clk 0:02:11]} 8. cxd5 {[%clk 0:02:53]}  Nxd5 {[%clk 0:02:05]} 9. Bb2 {[%clk 0:02:51]}  Be7 {[%clk 0:01:49]} 10. dxc5 {[%clk 0:02:49]}  Nxc5 {[%clk 0:01:49]} 11. Bxg7 {[%clk 0:02:45]}  Rg8 {[%clk 0:01:34]} 12. Bb5+ {[%clk 0:02:45]}  Nd7 {[%clk 0:01:33]} 13. Be5 {[%clk 0:02:27]}  a6 {[%clk 0:01:25]} 14. Bxd7+ {[%clk 0:02:25]}  Qxd7 {[%clk 0:01:26]} 15. Nbd2 {[%clk 0:02:23]}  f6 {[%clk 0:01:22]} 16. Bg3 {[%clk 0:02:23]}  Nc3 {[%clk 0:01:13]} 17. Qe1 {[%clk 0:02:22]}  e5 {[%clk 0:01:10]} 18. e4 {[%clk 0:02:14]}  Qd3 {[%clk 0:00:56]} 19. Nc4 {[%clk 0:02:01]}  b5 {[%clk 0:00:39]} 20. Nb6 {[%clk 0:01:58]}  Rd8 {[%clk 0:00:34]} 21. Nd5 {[%clk 0:01:56]}  Nxd5 {[%clk 0:00:23]} 22. exd5 {[%clk 0:01:57]}  Bxd5 {[%clk 0:00:21]} 23. Rd1 {[%clk 0:01:56]}  Qe4 {[%clk 0:00:17]} 24. Qa5 {[%clk 0:01:46]}  Bb7 {[%clk 0:00:16]} 25. Qb6 {[%clk 0:01:39]}  Qc6 {[%clk 0:00:12]} 26. Qe3 {[%clk 0:01:35]}  Rxd1 {[%clk 0:00:09]} 27. Rxd1 {[%clk 0:01:34]}  Rg4 {[%clk 0:00:08]} 28. h3 {[%clk 0:01:31]}  Rd4 {[%clk 0:00:06]} 29. Rxd4 {[%clk 0:01:27]}  exd4 {[%clk 0:00:05]} 30. Qxd4 {[%clk 0:01:28]}  Qc1+ {[%clk 0:00:04]} 31. Kh2 {[%clk 0:01:27]}  Bxf3 {[%clk 0:00:04]} 32. gxf3 {[%clk 0:01:28]}  Qc2 {[%clk 0:00:04]} 33. Qe4 {[%clk 0:01:23]}  Qxa2 {[%clk 0:00:02]} 34. Qc6+ {[%clk 0:01:18]}  Kf7 {[%clk 0:00:02]} 35. Qd5+ {[%clk 0:01:18]}  Kf8 {[%clk 0:00:02]} 36. h4 {[%clk 0:01:16]}  Qc2 {[%clk 0:00:02]} 37. h5 {[%clk 0:01:15]}  Qc8 {[%clk 0:00:02]} 38. Kg2 {[%clk 0:01:14]}  b4 {[%clk 0:00:01]} 39. Qe4 {[%clk 0:01:11]}  f5 {[%clk 0:00:01]} 40. Qd4 {[%clk 0:01:10]}  Kf7 {[%clk 0:00:01]} 41. h6 {[%clk 0:01:03]}  Bf6 {[%clk 0:00:01]} 42. Qa7+ {[%clk 0:01:02]}  Kg6 {[%clk 0:00:01]} 43. Qb6 {[%clk 0:00:59]}  Qe8 {[%clk 0:00:01]} 44. Qxa6 {[%clk 0:00:53]}  Qf7 {[%clk 0:00:01]} 45. Qd3 {[%clk 0:00:51]}  Kxh6 {[%clk 0:00:01]} 46. Qxf5 {[%clk 0:00:50]}  Qg6 {[%clk 0:00:01]} 47. Qh3+ {[%clk 0:00:48]}  Kg7 {[%clk 0:00:01]} 48. Qd7+ {[%clk 0:00:47]}  Kg8 {[%clk 0:00:01]} 49. Qc8+ {[%clk 0:00:45]}  Kg7 {[%clk 0:00:02]} 50. Qb7+ {[%clk 0:00:46]}  Kg8 {[%clk 0:00:02]} 51. Qxb4 {[%clk 0:00:45]}  h5 {[%clk 0:00:02]} 52. Qc4+ {[%clk 0:00:45]}  Kg7 {[%clk 0:00:02]} 53. Qc7+ {[%clk 0:00:42]}  Kg8 {[%clk 0:00:01]} 54. Qb8+ {[%clk 0:00:42]}  Kg7 {[%clk 0:00:01]} 55. Qb7+ {[%clk 0:00:39]}  Kg8 {[%clk 0:00:01]} 56. Qe4 {[%clk 0:00:39]} 1-0


[Site "https://www.chess.com"]

[Event "Titled Tuesday Blitz April 26 Late 2022"]
[White "Romanchuk, Viktor"]
[Black "Menna Barreto, Felipe Kubiaki"]
[WhiteFideId "14109271"]
[BlackFideId "2119757"]
[WhiteElo "2242"]
[BlackElo "2261"]
[Result "1-0"]
[Round "07"]
[TimeControl "180+1"]
[Date "2022.04.26"]
[WhiteClock "0:00:36"]
[BlackClock "0:01:15"]

1. d4 {[%clk 0:03:00]}  c5 {[%clk 0:03:00]} 2. d5 {[%clk 0:03:00]}  d6 {[%clk 0:03:01]} 3. c4 {[%clk 0:02:58]}  g6 {[%clk 0:03:01]} 4. e4 {[%clk 0:02:57]}  Bg7 {[%clk 0:03:01]} 5. f4 {[%clk 0:02:57]}  e6 {[%clk 0:03:00]} 6. Nf3 {[%clk 0:02:56]}  a6 {[%clk 0:02:57]} 7. Nc3 {[%clk 0:02:54]}  exd5 {[%clk 0:02:51]} 8. Nxd5 {[%clk 0:02:53]}  Ne7 {[%clk 0:02:47]} 9. Bd3 {[%clk 0:02:43]}  O-O {[%clk 0:02:46]} 10. Nxe7+ {[%clk 0:02:40]}  Qxe7 {[%clk 0:02:45]} 11. O-O {[%clk 0:02:41]}  Bg4 {[%clk 0:02:45]} 12. h3 {[%clk 0:02:38]}  Bxf3 {[%clk 0:02:46]} 13. Qxf3 {[%clk 0:02:39]}  Nc6 {[%clk 0:02:47]} 14. Kh1 {[%clk 0:02:35]}  Nd4 {[%clk 0:02:46]} 15. Qf2 {[%clk 0:02:32]}  b5 {[%clk 0:02:45]} 16. Re1 {[%clk 0:02:12]}  Rab8 {[%clk 0:02:45]} 17. Be3 {[%clk 0:02:09]}  Rfe8 {[%clk 0:02:30]} 18. Rac1 {[%clk 0:01:57]}  Qb7 {[%clk 0:02:11]} 19. b3 {[%clk 0:01:51]}  f5 {[%clk 0:02:06]} 20. Bxd4 {[%clk 0:01:34]}  Bxd4 {[%clk 0:02:03]} 21. Qc2 {[%clk 0:01:34]}  fxe4 {[%clk 0:01:59]} 22. Bxe4 {[%clk 0:01:21]}  Qd7 {[%clk 0:01:46]} 23. Bd5+ {[%clk 0:01:05]}  Kg7 {[%clk 0:01:46]} 24. Qd3 {[%clk 0:00:51]}  Rxe1+ {[%clk 0:01:42]} 25. Rxe1 {[%clk 0:00:51]}  Re8 {[%clk 0:01:43]} 26. Re4 {[%clk 0:00:49]}  Rxe4 {[%clk 0:01:32]} 27. Qxe4 {[%clk 0:00:48]}  b4 {[%clk 0:01:25]} 28. Qe6 {[%clk 0:00:41]}  Qxe6 {[%clk 0:01:25]} 29. Bxe6 {[%clk 0:00:41]}  Kf6 {[%clk 0:01:25]} 30. Bd5 {[%clk 0:00:40]}  Bf2 {[%clk 0:01:15]} 31. Kh2 {[%clk 0:00:40]}  h5 {[%clk 0:01:14]} 32. g3 {[%clk 0:00:40]}  h4 {[%clk 0:01:14]} 33. gxh4 {[%clk 0:00:41]}  Bg3+ {[%clk 0:01:15]} 34. Kxg3 {[%clk 0:00:40]}  Kf5 {[%clk 0:01:15]} 35. Kf3 {[%clk 0:00:38]}  a5 {[%clk 0:01:15]} 36. Be4+ {[%clk 0:00:36]}  Kf6 {[%clk 0:01:15]} 37. Kg4 {[%clk 0:00:36]} 1-0


[Site "https://www.chess.com"]

[Event "Titled Tuesday Blitz April 26 Late 2022"]
[White "Romero Ruscalleda, Josep"]
[Black "Sanchez Alvares, Kelvin Antonio"]
[WhiteFideId "2231859"]
[BlackFideId "3906680"]
[WhiteElo "2324"]
[BlackElo "2193"]
[Result "0-1"]
[Round "07"]
[TimeControl "180+1"]
[Date "2022.04.26"]
[WhiteClock "0:00:17"]
[BlackClock "0:00:26"]

1. e4 {[%clk 0:03:00]}  c5 {[%clk 0:02:51]} 2. c3 {[%clk 0:03:00]}  Nf6 {[%clk 0:02:50]} 3. e5 {[%clk 0:03:00]}  Nd5 {[%clk 0:02:49]} 4. Nf3 {[%clk 0:03:00]}  Nc6 {[%clk 0:02:47]} 5. Bc4 {[%clk 0:03:00]}  e6 {[%clk 0:02:46]} 6. d4 {[%clk 0:03:00]}  cxd4 {[%clk 0:02:45]} 7. cxd4 {[%clk 0:03:00]}  Nb6 {[%clk 0:02:42]} 8. Bb3 {[%clk 0:02:59]}  d5 {[%clk 0:02:40]} 9. O-O {[%clk 0:02:53]}  Be7 {[%clk 0:02:35]} 10. Nc3 {[%clk 0:02:52]}  a6 {[%clk 0:02:33]} 11. a3 {[%clk 0:02:51]}  Bd7 {[%clk 0:02:24]} 12. Qd3 {[%clk 0:02:50]}  Na5 {[%clk 0:02:20]} 13. Bc2 {[%clk 0:02:49]}  h6 {[%clk 0:02:19]} 14. b3 {[%clk 0:02:37]}  Rc8 {[%clk 0:02:18]} 15. Bd2 {[%clk 0:02:36]}  Nc6 {[%clk 0:02:11]} 16. b4 {[%clk 0:02:33]}  Na7 {[%clk 0:02:06]} 17. Rac1 {[%clk 0:02:12]}  Nb5 {[%clk 0:01:56]} 18. Ne2 {[%clk 0:01:54]}  Nc4 {[%clk 0:01:53]} 19. a4 {[%clk 0:01:29]}  Na7 {[%clk 0:01:47]} 20. Bc3 {[%clk 0:01:17]}  g5 {[%clk 0:01:38]} 21. Ng3 {[%clk 0:01:14]}  h5 {[%clk 0:01:37]} 22. h3 {[%clk 0:01:08]}  b5 {[%clk 0:01:29]} 23. a5 {[%clk 0:01:06]}  Nc6 {[%clk 0:01:27]} 24. Nd2 {[%clk 0:00:58]}  Nxb4 {[%clk 0:01:18]} 25. Bxb4 {[%clk 0:00:52]}  Bxb4 {[%clk 0:01:19]} 26. Nb3 {[%clk 0:00:51]}  Qe7 {[%clk 0:01:06]} 27. f4 {[%clk 0:00:45]}  g4 {[%clk 0:00:55]} 28. f5 {[%clk 0:00:42]}  gxh3 {[%clk 0:00:31]} 29. gxh3 {[%clk 0:00:36]}  Qg5 {[%clk 0:00:29]} 30. Kh2 {[%clk 0:00:23]}  h4 {[%clk 0:00:22]} 31. fxe6 {[%clk 0:00:20]}  Qxg3+ {[%clk 0:00:20]} 32. Qxg3 {[%clk 0:00:18]}  hxg3+ {[%clk 0:00:21]} 33. Kxg3 {[%clk 0:00:18]}  Bxe6 {[%clk 0:00:22]} 34. Nc5 {[%clk 0:00:16]}  Bxc5 {[%clk 0:00:22]} 35. dxc5 {[%clk 0:00:17]}  Ne3 {[%clk 0:00:22]} 36. Rf3 {[%clk 0:00:15]}  Nxc2 {[%clk 0:00:22]} 37. Rxc2 {[%clk 0:00:15]}  Rxh3+ {[%clk 0:00:22]} 38. Kg2 {[%clk 0:00:15]}  Rxf3 {[%clk 0:00:23]} 39. Kxf3 {[%clk 0:00:16]}  Kd7 {[%clk 0:00:24]} 40. Ke3 {[%clk 0:00:16]}  Kc6 {[%clk 0:00:24]} 41. Kd4 {[%clk 0:00:16]}  Rg8 {[%clk 0:00:25]} 42. Rf2 {[%clk 0:00:17]}  Rg4+ {[%clk 0:00:25]} 43. Kc3 {[%clk 0:00:17]}  Kxc5 {[%clk 0:00:26]} 44. Kb2 {[%clk 0:00:17]}  d4 {[%clk 0:00:26]} 0-1


[Site "https://www.chess.com"]